bitfinex-derivatives/quotes_SOLF0:USTF0_20260314
["timestamp","ask_amount","ask_price","bid_price","bid_amount"]
[1773517484715,9.1145025,87.024,86.981,4.74951114]
[1773517484918,10.34,87.025,86.981,4.74951114]
[1773517485114,9.1145025,87.024,86.981,4.74951114]
[1773517485412,10.34,87.025,86.981,4.74951114]
[1773517485613,9.11449454,87.024,86.981,4.74951114]
[1773517485813,10.34,87.025,86.981,4.74951114]
[1773517486013,9.11449454,87.024,86.981,4.74951114]
[1773517486210,10.34,87.025,86.981,4.74951114]
[1773517486518,9.11564501,87.024,86.981,4.74951114]
[1773517486812,10.34,87.025,86.981,4.74951114]
[1773517487016,9.11564501,87.024,86.981,4.74951114]
[1773517487216,10.34,87.025,86.981,4.74951114]
[1773517487417,9.11595792,87.024,86.981,4.74951114]
[1773517487618,10.34,87.025,86.981,4.74951114]
[1773517487914,9.11595792,87.024,86.981,4.74951114]
[1773517488108,10.34,87.025,86.981,4.74951114]
[1773517488306,9.11623438,87.024,86.981,4.74951114]
[1773517488508,9.11623438,87.023,86.981,4.74951114]
[1773517488813,10.34,87.025,86.981,4.74951114]
[1773517489014,9.11623438,87.024,86.981,4.74951114]
[1773517489214,9.11623438,87.023,86.981,4.74951114]
[1773517489409,10.34,87.025,86.981,4.74951114]
[1773517489717,9.11666443,87.024,86.981,4.74951114]
[1773517489916,9.11666443,87.023,86.981,4.74951114]
[1773517490116,10.34,87.025,86.981,4.74951114]
[1773517490316,9.11716794,87.024,86.981,4.74951114]
[1773517490520,9.11716794,87.023,86.981,4.74951114]
[1773517490719,10.34,87.025,86.981,4.74951114]
[1773517491016,9.11716794,87.024,86.981,4.74951114]
[1773517491218,9.11716794,87.023,86.981,4.74951114]
[1773517491517,10.34,87.025,86.981,4.74951114]
[1773517491716,10.34,87.023,86.981,4.74951114]
[1773517492713,10.339,87.031,86.983,4.75606291]
[1773517492918,18.54212828,87.03,86.983,4.75606291]
[1773517493118,3.12039754,87.04,86.983,4.75606291]
[1773517493119,18.54212828,87.029,86.983,4.75606291]
[1773517493315,18.54212828,87.028,86.983,4.75606291]
[1773517493519,9.11779054,87.027,86.983,4.75606291]
[1773517493719,9.11779054,87.026,86.983,4.75606291]
[1773517494020,9.11779054,87.025,86.983,4.75606291]
[1773517494212,9.11779054,87.024,86.983,4.75606291]
[1773517494416,9.11779054,87.023,86.983,4.75606291]
[1773517494613,10.34,87.027,86.983,4.75606291]
[1773517494819,9.16506013,87.026,86.983,4.75606291]
[1773517495021,9.16506013,87.025,86.983,4.75606291]
[1773517495220,9.16506013,87.024,86.983,4.75606291]
[1773517495422,10.339,87.036,86.985,4.75620531]
[1773517495723,9.16420289,87.035,86.985,4.75620531]
[1773517495922,9.16420289,87.034,86.985,4.75620531]
[1773517496113,9.16420289,87.033,86.991,4.75696826]
[1773517496318,168.13025445,87.048,86.991,4.75696826]
[1773517496519,10.339,87.034,86.991,4.75696826]
[1773517502031,10.338,87.043,86.994,4.77872743]
[1773517502231,18.57794301,87.042,86.994,4.77872743]
[1773517502532,18.57794301,87.041,86.994,4.77872743]
[1773517502722,9.15958719,87.04,86.994,4.77872743]
[1773517502922,9.15958719,87.039,86.994,4.77872743]
[1773517503131,9.15958719,87.038,86.994,4.77872743]
[1773517503332,9.15958719,87.037,86.994,4.77872743]
[1773517503534,10.338,87.043,87.0,3.12039754]
[1773517503733,18.5760289,87.042,87.001,4.77642166]
[1773517504033,18.5760289,87.041,87.001,4.77642166]
[1773517504234,9.15864474,87.04,87.001,4.77642166]
[1773517504433,9.15864474,87.039,87.001,4.77642166]
[1773517504634,9.15864474,87.038,87.001,4.77642166]
[1773517504829,9.15864474,87.037,87.001,4.77642166]
[1773517505133,10.338,87.043,87.001,4.77642166]
[1773517505331,18.57584748,87.042,87.001,4.77642166]
[1773517505533,18.57584748,87.041,87.001,4.77642166]
[1773517505736,9.15827636,87.04,87.001,4.77642166]
[1773517506036,9.15827636,87.039,87.001,4.77642166]
[1773517506334,9.15827636,87.038,87.001,4.77642166]
[1773517506525,10.338,87.043,87.001,4.77642166]
[1773517507532,209.31025445,87.048,87.006,10.342]
[1773517507736,10.337,87.052,87.011,4.77602298]
[1773517507930,3.12039754,87.05,87.0,4.77602298]
[1773517508126,3.12039754,87.03,86.988,4.7854651]
[1773517509632,10.339,87.028,86.988,4.7854651]
[1773517519046,10.338,87.039,86.988,4.7854651]
[1773517519348,9.15865412,87.038,86.988,4.7854651]
[1773517519552,9.15865412,87.037,86.988,4.7854651]
[1773517519748,9.15865412,87.036,86.988,4.7854651]
[1773517519949,10.338,87.039,86.988,4.7854651]
[1773517520148,9.15862415,87.038,86.988,4.7854651]
[1773517520352,9.15862415,87.037,86.988,4.7854651]
[1773517520549,9.15862415,87.036,86.988,4.7854651]
[1773517520748,9.15862415,87.035,86.988,4.7854651]
[1773517520950,10.338,87.039,86.988,4.7854651]
[1773517521250,10.338,87.037,86.988,4.7854651]
[1773517521449,9.15876308,87.036,86.988,4.7854651]
[1773517521649,9.15876308,87.035,86.988,4.7854651]
[1773517521949,10.338,87.037,86.988,4.7854651]
[1773517522151,10.339,87.035,86.988,4.7854651]
[1773517524157,9.19865631,87.034,86.988,4.7854651]
[1773517524351,10.339,87.035,86.988,4.7854651]
[1773517524550,9.19886613,87.034,86.988,4.7854651]
[1773517524853,10.339,87.035,86.988,4.7854651]
[1773517525052,10.339,87.032,86.988,4.7854651]
[1773517537164,9.20768002,87.031,86.988,4.7854651]
[1773517537364,10.339,87.032,86.988,4.7854651]
[1773517537565,9.20768002,87.031,86.988,4.7854651]
[1773517537764,10.339,87.032,86.988,4.7854651]
[1773517538066,9.20768002,87.031,86.988,4.7854651]
[1773517538364,10.339,87.032,86.988,4.7854651]
[1773517538562,9.20895323,87.031,86.988,4.7854651]
[1773517538762,10.339,87.032,86.988,4.7854651]
[1773517539061,9.20895323,87.031,86.988,4.7854651]
[1773517539365,9.20895323,87.03,86.988,4.7854651]
[1773517539563,9.20895323,87.029,86.988,4.7854651]
[1773517539763,10.339,87.032,86.988,4.7854651]
[1773517539964,9.21029285,87.031,86.988,4.7854651]
[1773517540159,19.54929285,87.03,86.988,4.7854651]
[1773517540364,9.21029285,87.029,86.988,4.7854651]
[1773517540664,10.339,87.03,86.988,4.7854651]
[1773517540859,9.21202418,87.029,86.988,4.7854651]
[1773517541065,10.339,87.03,86.988,4.7854651]
[1773517541265,9.21207914,87.029,86.988,4.7854651]
[1773517541566,10.339,87.03,86.988,4.7854651]
[1773517541761,9.21201687,87.029,86.988,4.7854651]
[1773517541967,10.339,87.03,86.988,4.7854651]
[1773517542166,9.21201687,87.029,86.988,4.7854651]
[1773517542369,10.339,87.03,86.988,4.7854651]
[1773517542562,9.21201003,87.029,86.988,4.7854651]
[1773517542768,10.339,87.03,86.988,4.7854651]
[1773517543068,9.21201012,87.029,86.988,4.7854651]
[1773517543268,10.339,87.03,86.988,4.7854651]
[1773517543470,9.21200398,87.029,86.988,4.7854651]
[1773517543665,9.21201715,87.028,86.988,4.7854651]
[1773517543867,9.21259634,87.027,86.988,4.7854651]
[1773517544063,9.21259634,87.026,86.988,4.7854651]
[1773517544267,3.11950121,87.03,86.988,4.7854651]
[1773517544268,9.21259634,87.025,86.988,4.7854651]
[1773517544468,9.21259634,87.024,86.988,4.7854651]
[1773517544670,10.341,87.017,86.988,4.7854651]
[1773517560787,10.342,87.009,86.988,4.7854651]
[1773517564588,10.342,87.009,86.966,4.77329345]
[1773517566192,10.342,87.009,86.967,4.77338734]
[1773517574798,10.343,87.001,86.967,4.77338734]
[1773517589321,3.12100896,87.02,86.966,248.94258621]
[1773517589620,3.12100896,87.0,86.947,4.77618577]
[1773517590512,10.344,86.988,86.947,4.77618577]
[1773517592115,10.344,86.988,86.95,3.12100896]
[1773517592522,10.344,86.988,86.95,7.88971031]
[1773517593420,10.344,86.988,86.951,4.7645719]
[1773517597330,10.344,86.988,86.937,254.3819874]
[1773517597331,3.12100896,87.0,86.941,4.77003507]
[1773517597822,10.346,86.975,86.941,4.77003507]
[1773517600430,9.18843904,87.017,86.961,4.76887661]
[1773517600730,3.12100896,87.03,86.971,4.76887661]
[1773517600932,9.18771448,87.029,86.971,4.76887661]
[1773517601130,9.18771448,87.028,86.971,4.76887661]
[1773517601331,10.343,86.996,86.971,4.76887661]
[1773517608527,9.28193416,87.042,86.971,4.76887661]
[1773517608735,3.12100896,87.02,86.971,4.76887661]
[1773517608937,9.19063791,87.019,86.971,4.76887661]
[1773517609137,9.19063791,87.018,86.971,4.76887661]
[1773517609339,9.19063791,87.017,86.971,4.76887661]
[1773517609540,10.342,87.004,86.971,4.76887661]
[1773517617237,10.343,86.997,86.96,4.80153868]
[1773517620347,10.344,86.99,86.96,4.80153868]
[1773517638265,10.344,86.99,86.96,7.92270196]
[1773517646474,9.30980288,87.016,86.971,4.77532386]
[1773517646674,18.54528684,87.015,86.971,4.77532386]
[1773517646873,18.54528684,87.014,86.971,4.77532386]
[1773517647175,18.54528684,87.013,86.971,4.77532386]
[1773517647474,18.54528684,87.012,86.971,4.77532386]
[1773517647672,10.342,87.006,86.971,4.77532386]
[1773517647874,9.23548396,87.005,86.971,4.77532386]
[1773517648173,9.23548396,87.004,86.971,4.77532386]
[1773517648373,9.23548396,87.003,86.971,4.77532386]
[1773517648572,9.23548396,87.002,86.971,4.77532386]
[1773517648874,9.23548396,87.001,86.971,4.77532386]
[1773517649073,9.23548396,87.0,86.971,4.77532386]
[1773517649373,9.30955418,87.019,86.971,4.77532386]
[1773517649564,10.342,87.004,86.971,4.77532386]
[1773517649867,9.23544336,87.003,86.971,4.77532386]
[1773517650063,9.23544336,87.002,86.971,4.77532386]
[1773517650263,9.23544336,87.001,86.971,4.77532386]
[1773517650468,10.342,87.004,86.971,4.77532386]
[1773517650664,9.23553068,87.003,86.971,4.77532386]
[1773517650873,9.23553068,87.002,86.971,4.77532386]
[1773517651072,9.23553068,87.001,86.971,4.77532386]
[1773517651273,10.342,87.004,86.971,4.77532386]
[1773517651475,9.23562163,87.003,86.971,4.77532386]
[1773517651673,9.23562163,87.002,86.971,4.77532386]
[1773517651973,9.23562163,87.001,86.971,4.77532386]
[1773517652274,10.342,87.004,86.971,4.77532386]
[1773517652475,9.23571656,87.003,86.971,4.77532386]
[1773517652774,9.23571656,87.002,86.971,4.77532386]
[1773517652974,9.23571656,87.001,86.971,4.77532386]
[1773517653176,10.342,87.004,86.971,4.77532386]
[1773517653377,10.343,87.0,86.971,4.77532386]
[1773517655678,10.343,87.0,86.96,3.12116328]
[1773517655679,10.343,87.0,86.962,4.7766091]
[1773517656582,10.343,86.997,86.962,4.7766091]
[1773517670388,10.343,86.997,86.95,3.12116328]
[1773517670590,10.343,86.997,86.951,4.75598868]
[1773517670787,10.344,86.99,86.951,4.75598868]
[1773517695402,10.344,86.99,86.96,3.12116328]
[1773517697602,10.344,86.99,86.96,3.12092296]
[1773517701606,10.344,86.99,86.951,4.75598868]
[1773517703298,10.343,86.999,86.951,4.75598868]
[1773517704006,10.343,86.999,86.961,4.74342596]
[1773517708508,10.342,87.008,86.971,4.74355833]
[1773517708810,9.24837174,87.007,86.971,4.74355833]
[1773517709010,10.342,87.008,86.971,4.74355833]
[1773517710114,10.34,87.021,86.971,4.74355833]
[1773517710315,10.34,87.021,86.981,4.7446979]
[1773517716825,188.77769236,87.029,86.981,4.7446979]
[1773517719227,178.43869236,87.029,86.991,4.7441486]
[1773517783076,9.23180156,87.028,86.991,4.7441486]
[1773517783275,42.56,87.028,86.991,4.7441486]
[1773517784572,42.56,87.028,86.977,10.345]
[1773517784772,42.56,87.028,86.98,4.74420556]
[1773517785076,9.23047973,87.027,86.98,4.74420556]
[1773517785275,42.56,87.028,86.98,4.74420556]
[1773517789978,42.56,87.028,86.982,10.345]
[1773517799184,42.56,87.028,86.982,15.09563979]
[1773517799384,42.56,87.028,86.983,4.75063979]
[1773517806594,3.11884357,87.02,86.972,4.75035446]
[1773517806997,43.64,87.019,86.972,4.75035446]
[1773517807499,53.981,87.019,86.972,4.75035446]
[1773517807790,43.64,87.019,86.962,261.19937854]
[1773517807996,3.11884357,87.01,86.962,256.44897426]
[1773517809697,10.342,87.009,86.962,256.44897426]
[1773517818599,10.342,87.009,86.963,4.74626501]
[1773517833811,10.344,86.993,86.922,4.77150427]
[1773517834007,10.344,86.993,86.94,3.12097432]
[1773517834212,10.344,86.993,86.941,4.77150427]
[1773517836111,10.343,87.002,86.951,4.75187835]
[1773517836316,44.12,87.019,86.961,4.75187835]
[1773517837614,10.342,87.011,86.961,4.75187835]
[1773517842016,3.12097432,87.01,86.961,4.75187835]
[1773517842221,10.342,87.009,86.961,4.75187835]
[1773517862135,3.12097432,87.0,86.961,4.75187835]
[1773517862337,9.23093615,86.999,86.947,4.72655547]
[1773517862640,9.23093615,86.998,86.947,4.72655547]
[1773517862938,9.23093615,86.997,86.947,4.72655547]
[1773517863129,9.23093615,86.996,86.947,4.72655547]
[1773517863335,9.23093615,86.995,86.947,4.72655547]
[1773517863534,9.23093615,86.994,86.947,4.72655547]
[1773517863737,10.343,86.998,86.947,4.72655547]
[1773517863938,9.22913708,86.997,86.947,4.72655547]
[1773517864139,9.22913708,86.996,86.947,4.72655547]
[1773517864439,9.22913708,86.995,86.947,4.72655547]
[1773517864637,9.22913708,86.994,86.947,4.72655547]
[1773517864837,10.343,86.998,86.947,4.72655547]
[1773517865039,9.22736012,86.997,86.947,4.72655547]
[1773517865339,9.22736012,86.996,86.947,4.72655547]
[1773517865637,10.343,86.998,86.947,4.72655547]
[1773517865638,9.22736012,86.995,86.947,4.72655547]
[1773517865831,10.343,86.998,86.947,4.72655547]
[1773517866034,10.343,86.996,86.947,4.72655547]
[1773517866237,9.22572643,86.995,86.947,4.72655547]
[1773517866435,10.343,86.996,86.947,4.72655547]
[1773517866637,13.46497432,86.99,86.947,4.72655547]
[1773517872247,13.46497432,86.99,86.938,4.71471952]
[1773517875048,10.345,86.982,86.938,4.71471952]
[1773517919291,9.25240885,86.981,86.938,4.71471952]
[1773517919490,9.25240885,86.98,86.938,4.71471952]
[1773517919689,10.345,86.982,86.938,4.71471952]
[1773517919990,9.25241001,86.981,86.938,4.71471952]
[1773517920188,9.25241001,86.98,86.938,4.71471952]
[1773517920388,10.345,86.982,86.938,4.71471952]
[1773517920589,9.25251122,86.981,86.938,4.71471952]
[1773517920894,12.37512167,86.98,86.938,4.71471952]
[1773517921090,18.55534905,86.979,86.938,4.71471952]
[1773517921286,3.12261045,86.97,86.922,256.39169022]
[1773517921487,3.12261045,86.96,86.922,256.39169022]
[1773517922694,10.347,86.969,86.922,256.39169022]
[1773517922994,9.24130176,86.968,86.922,256.39169022]
[1773517923290,9.24130176,86.967,86.922,256.39169022]
[1773517923491,10.347,86.969,86.922,256.39169022]
[1773517923691,9.23708739,86.968,86.922,256.39169022]
[1773517923892,9.23708739,86.967,86.922,256.39169022]
[1773517924091,10.347,86.969,86.922,256.39169022]
[1773517924291,9.23389038,86.968,86.923,4.73413963]
[1773517924496,10.347,86.969,86.923,4.73413963]
[1773517924689,9.23389159,86.968,86.923,4.73413963]
[1773517924991,10.347,86.969,86.923,4.73413963]
[1773517925786,3.12261045,86.97,86.923,4.73413963]
[1773517925993,9.23129105,86.969,86.923,4.73413963]
[1773517926187,3.12261045,86.97,86.923,4.73413963]
[1773517931399,9.2216466,86.969,86.923,4.73413963]
[1773517931600,3.12261045,86.97,86.923,4.73413963]
[1773517931804,9.22164851,86.969,86.923,4.73413963]
[1773517931993,3.12261045,86.97,86.923,4.73413963]
[1773517932192,9.2208592,86.969,86.923,4.73413963]
[1773517932392,3.12261045,86.97,86.923,4.73413963]
[1773517932592,9.22061841,86.969,86.923,4.73413963]
[1773517932799,3.12261045,86.97,86.923,4.73413963]
[1773517932999,9.22061841,86.969,86.923,4.73413963]
[1773517933199,3.12261045,86.97,86.923,4.73413963]
[1773517933597,10.345,86.978,86.923,4.73413963]
[1773517933792,47.14261045,86.98,86.923,4.73413963]
[1773517933793,10.346,86.976,86.923,4.73413963]
[1773517934001,9.21970168,86.975,86.923,4.73413963]
[1773517934197,9.21970168,86.974,86.923,4.73413963]
[1773517934399,9.21970168,86.973,86.923,4.73413963]
[1773517934701,9.21970168,86.972,86.923,4.73413963]
[1773517934902,9.21970168,86.971,86.923,4.73413963]
[1773517935101,9.21970168,86.97,86.923,4.73413963]
[1773517935298,10.346,86.976,86.923,4.73413963]
[1773517935502,9.21818747,86.975,86.923,4.73413963]
[1773517935803,9.21818747,86.974,86.923,4.73413963]
[1773517936004,9.21818747,86.973,86.923,4.73413963]
[1773517936304,9.21818747,86.972,86.923,4.73413963]
[1773517936502,10.346,86.976,86.923,4.73413963]
[1773517936700,10.346,86.974,86.923,4.73413963]
[1773517936900,9.21757545,86.973,86.923,4.73413963]
[1773517937098,9.21757545,86.972,86.923,4.73413963]
[1773517937402,9.21757545,86.971,86.923,4.73413963]
[1773517937601,10.346,86.974,86.923,4.73413963]
[1773517937800,9.21717494,86.973,86.923,4.73413963]
[1773517938001,9.21717494,86.972,86.923,4.73413963]
[1773517938198,9.21717494,86.971,86.923,4.73413963]
[1773517938402,10.346,86.974,86.923,4.73413963]
[1773517938605,9.21680169,86.973,86.923,4.73413963]
[1773517938904,9.21680169,86.972,86.923,4.73413963]
[1773517939103,10.346,86.974,86.923,4.73413963]
[1773517939305,9.21650654,86.973,86.923,4.73413963]
[1773517939505,3.12261045,86.97,86.923,4.73413963]
[1773517942311,10.346,86.974,86.923,4.73413963]
[1773517942504,3.12261045,86.97,86.923,4.73413963]
[1773517943612,3.12387864,86.97,86.923,4.73413963]
[1773517948416,10.346,86.972,86.923,4.73413963]
[1773517948716,9.24076786,86.971,86.923,4.73413963]
[1773517949016,10.346,86.972,86.923,4.73413963]
[1773517949215,9.24181411,86.971,86.923,4.73413963]
[1773517949414,10.346,86.972,86.923,4.73413963]
[1773517949715,9.24209456,86.971,86.923,4.73413963]
[1773517949908,10.346,86.972,86.923,4.73413963]
[1773517950106,9.24209811,86.971,86.923,4.73413963]
[1773517950415,10.346,86.972,86.923,4.73413963]
[1773517950618,9.24263639,86.971,86.923,4.73413963]
[1773517950816,10.346,86.972,86.923,4.73413963]
[1773517951013,9.24266338,86.971,86.923,4.73413963]
[1773517951213,9.24266338,86.97,86.923,4.73413963]
[1773517951516,10.346,86.972,86.923,4.73413963]
[1773517951716,9.24328861,86.971,86.923,4.73413963]
[1773517951914,9.24328861,86.97,86.923,4.73413963]
[1773517952217,10.346,86.972,86.923,4.73413963]
[1773517952417,9.244023,86.971,86.923,4.73413963]
[1773517952617,9.244023,86.97,86.923,4.73413963]
[1773517952812,10.346,86.972,86.923,4.73413963]
[1773517953008,10.347,86.969,86.923,4.73413963]
[1773517956216,9.24795392,86.968,86.923,4.73413963]
[1773517956407,10.347,86.969,86.923,4.73413963]
[1773517956613,9.24795392,86.968,86.923,4.73413963]
[1773517956917,10.347,86.969,86.923,4.73413963]
[1773517957117,9.2479557,86.968,86.923,4.73413963]
[1773517957418,10.347,86.969,86.923,4.73413963]
[1773517957720,9.24924817,86.968,86.923,4.73413963]
[1773517957920,10.347,86.969,86.923,4.73413963]
[1773517958121,9.24924817,86.968,86.923,4.73413963]
[1773517958421,9.24924817,86.967,86.923,4.73413963]
[1773517958622,10.347,86.969,86.923,4.73413963]
[1773517958820,9.25069847,86.968,86.923,4.73413963]
[1773517959020,9.25069847,86.967,86.923,4.73413963]
[1773517959221,10.347,86.969,86.923,4.73413963]
[1773517959522,9.25233525,86.968,86.923,4.73413963]
[1773517959720,9.25233525,86.967,86.923,4.73413963]
[1773517959922,10.347,86.969,86.923,4.73413963]
[1773517960114,9.25233813,86.968,86.923,4.73413963]
[1773517960322,9.25233813,86.967,86.923,4.73413963]
[1773517960521,9.25233813,86.966,86.923,4.73413963]
[1773517960822,10.347,86.969,86.923,4.73413963]
[1773517961024,9.25420289,86.968,86.923,4.73413963]
[1773517961218,9.25420289,86.967,86.923,4.73413963]
[1773517961418,9.25420289,86.966,86.923,4.73413963]
[1773517961620,9.25420289,86.965,86.923,4.73413963]
[1773517961815,10.347,86.969,86.923,4.73413963]
[1773517962021,9.25635146,86.968,86.923,4.73413963]
[1773517962320,9.25635146,86.967,86.923,4.73413963]
[1773517962518,9.25635146,86.966,86.923,4.73413963]
[1773517962727,9.25635146,86.965,86.923,4.73413963]
[1773517962922,9.25635146,86.964,86.923,4.73413963]
[1773517963226,9.26193533,86.963,86.923,4.73413963]
[1773517963420,10.347,86.969,86.923,4.73413963]
[1773517963621,9.26193533,86.968,86.923,4.73413963]
[1773517963827,9.26193533,86.967,86.923,4.73413963]
[1773517964028,9.26193533,86.966,86.923,4.73413963]
[1773517964328,9.26193533,86.965,86.923,4.73413963]
[1773517964526,9.26193533,86.964,86.923,4.73413963]
[1773517964721,10.347,86.969,86.923,4.73413963]
[1773517964722,9.26193533,86.963,86.923,4.73413963]
[1773517964927,9.26193533,86.962,86.923,4.73413963]
[1773517965128,9.26193533,86.961,86.923,4.73413963]
[1773517965329,10.347,86.969,86.923,4.73413963]
[1773517965627,9.26609876,86.968,86.923,4.73413963]
[1773517965828,9.26609876,86.967,86.923,4.73413963]
[1773517966129,9.26609876,86.966,86.923,4.73413963]
[1773517966429,9.26609876,86.965,86.923,4.73413963]
[1773517966618,9.26609876,86.964,86.923,4.73413963]
[1773517966820,9.26609876,86.963,86.923,4.73413963]
[1773517967019,9.26609876,86.962,86.923,4.73413963]
[1773517967223,9.26609876,86.961,86.923,4.73413963]
[1773517967428,9.26609876,86.96,86.923,4.73413963]
[1773517967628,9.26609876,86.959,86.923,4.73413963]
[1773517967927,9.26609876,86.958,86.923,4.73413963]
[1773517968127,9.26609876,86.957,86.923,4.73413963]
[1773517968332,10.347,86.969,86.923,4.73413963]
[1773517968528,18.52344329,86.968,86.923,4.73413963]
[1773517968726,9.27825849,86.967,86.923,4.73413963]
[1773517968927,9.27825849,86.966,86.923,4.73413963]
[1773517969121,9.27825849,86.965,86.923,4.73413963]
[1773517969325,9.27825849,86.964,86.923,4.73413963]
[1773517969531,9.27825849,86.963,86.923,4.73413963]
[1773517969726,9.27825849,86.962,86.923,4.73413963]
[1773517969925,9.27825849,86.961,86.923,4.73413963]
[1773517970129,9.27825849,86.96,86.923,4.73413963]
[1773517970329,9.27825849,86.959,86.923,4.73413963]
[1773517970624,9.27825849,86.958,86.923,4.73413963]
[1773517970922,9.27825849,86.957,86.923,4.73413963]
[1773517971123,10.347,86.969,86.923,4.73413963]
[1773517971421,18.52369078,86.968,86.923,4.73413963]
[1773517971621,9.2783804,86.967,86.923,4.73413963]
[1773517971822,9.2783804,86.966,86.923,4.73413963]
[1773517972022,9.2783804,86.965,86.923,4.73413963]
[1773517972222,9.2783804,86.964,86.923,4.73413963]
[1773517972525,9.2783804,86.963,86.923,4.73413963]
[1773517972722,9.2783804,86.962,86.923,4.73413963]
[1773517972920,9.2783804,86.961,86.923,4.73413963]
[1773517973130,9.2783804,86.96,86.923,4.73413963]
[1773517973325,9.2783804,86.959,86.923,4.73413963]
[1773517973528,9.2783804,86.958,86.923,4.73413963]
[1773517973828,9.2783804,86.957,86.923,4.73413963]
[1773517974029,10.347,86.969,86.923,4.73413963]
[1773517974225,18.52390904,86.968,86.923,4.73413963]
[1773517974428,18.52390904,86.967,86.923,4.73413963]
[1773517974629,9.2785072,86.966,86.923,4.73413963]
[1773517974827,9.2785072,86.965,86.923,4.73413963]
[1773517975028,9.2785072,86.964,86.923,4.73413963]
[1773517975231,9.2785072,86.963,86.923,4.73413963]
[1773517975431,9.2785072,86.962,86.923,4.73413963]
[1773517975730,9.2785072,86.961,86.923,4.73413963]
[1773517976031,9.2785072,86.96,86.923,4.73413963]
[1773517976232,9.2785072,86.959,86.923,4.73413963]
[1773517976427,9.2785072,86.958,86.923,4.73413963]
[1773517976629,10.347,86.969,86.923,4.73413963]
[1773517976630,9.2785072,86.957,86.923,4.73413963]
[1773517976827,10.347,86.969,86.923,4.73413963]
[1773517977032,18.51790928,86.968,86.923,4.73413963]
[1773517977232,18.51790928,86.967,86.923,4.73413963]
[1773517977433,9.27235611,86.966,86.923,4.73413963]
[1773517977634,9.27235611,86.965,86.923,4.73413963]
[1773517977834,9.27235611,86.964,86.923,4.73413963]
[1773517978034,9.27235611,86.963,86.923,4.73413963]
[1773517978233,9.27235611,86.962,86.923,4.73413963]
[1773517978425,9.27235611,86.961,86.929,4.74170341]
[1773517978631,10.345,86.979,86.929,4.74170341]
[1773517978827,18.51881558,86.978,86.929,4.74170341]
[1773517979031,18.51881558,86.977,86.929,4.74170341]
[1773517979227,9.27293565,86.976,86.929,4.74170341]
[1773517979433,9.27293565,86.975,86.932,4.74171273]
[1773517979633,10.344,86.988,86.941,4.74171273]
[1773517979834,18.51089333,86.987,86.941,4.74171273]
[1773517980030,18.51089333,86.986,86.941,4.74171273]
[1773517980236,9.26905797,86.985,86.941,4.74171273]
[1773517980431,9.26905797,86.984,86.941,4.74171273]
[1773517980635,9.26905797,86.983,86.941,4.74171273]
[1773517980841,9.26905797,86.982,86.941,4.74171273]
[1773517981035,9.26905797,86.981,86.941,4.74171273]
[1773517981241,9.26905797,86.98,86.941,4.74171273]
[1773517981538,10.344,86.986,86.941,4.74171273]
[1773517981539,9.26905797,86.979,86.941,4.74171273]
[1773517981736,9.26905797,86.978,86.941,4.74171273]
[1773517981940,10.344,86.986,86.941,4.74171273]
[1773517982245,9.26104306,86.985,86.941,4.74171273]
[1773517982540,9.26104306,86.984,86.941,4.74171273]
[1773517982739,9.26104306,86.983,86.941,4.74171273]
[1773517983036,9.26104306,86.982,86.941,4.74171273]
[1773517983345,9.26104306,86.981,86.941,4.74171273]
[1773517983545,9.26104306,86.98,86.941,4.74171273]
[1773517983746,10.344,86.986,86.941,4.74171273]
[1773517983942,9.25697564,86.985,86.941,4.74171273]
[1773517984245,9.25697564,86.984,86.941,4.74171273]
[1773517984445,9.25697564,86.983,86.941,4.74171273]
[1773517984646,9.25697564,86.982,86.941,4.74171273]
[1773517984945,10.344,86.986,86.941,4.74171273]
[1773517984946,9.25697564,86.981,86.941,4.74171273]
[1773517985145,10.344,86.986,86.941,4.74171273]
[1773517985446,9.25406391,86.985,86.941,4.74171273]
[1773517985645,9.25406391,86.984,86.941,4.74171273]
[1773517985846,9.25406391,86.983,86.941,4.74171273]
[1773517986141,9.25406391,86.982,86.941,4.74171273]
[1773517986348,10.344,86.986,86.941,4.74171273]
[1773517986548,9.25289031,86.985,86.941,4.74171273]
[1773517986749,9.25289031,86.984,86.941,4.74171273]
[1773517987041,9.25289031,86.983,86.941,4.74171273]
[1773517987247,9.25289031,86.982,86.941,4.74171273]
[1773517987448,10.344,86.986,86.941,4.74171273]
[1773517987648,9.25184933,86.985,86.941,4.74171273]
[1773517987849,9.25184933,86.984,86.941,4.74171273]
[1773517988050,9.25184933,86.983,86.941,4.74171273]
[1773517988251,9.25184933,86.982,86.941,4.74171273]
[1773517988452,10.344,86.986,86.941,4.74171273]
[1773517988653,9.25092434,86.985,86.941,4.74171273]
[1773517988850,9.25092434,86.984,86.941,4.74171273]
[1773517989052,9.25092434,86.983,86.941,4.74171273]